bitfinex/quotes_SOLUSD_20241125
["timestamp","ask_amount","ask_price","bid_price","bid_amount"]
[1732556964971,18.29330717,238.46,238.38,6.0977]
[1732556965181,18.29330717,238.44,238.38,10.2926]
[1732556965403,18.29330717,238.44,238.39,0.12549]
[1732556966381,18.29330717,238.44,238.39,0.25098]
[1732556967382,18.29330717,238.46,238.39,0.25098]
[1732556967698,18.29330717,238.44,238.39,0.25098]
[1732556968714,18.29330717,238.46,238.39,0.25098]
[1732556969501,18.29330717,238.46,238.39,4.44568]
[1732556969903,18.29330717,238.43,238.39,0.25098]
[1732556970101,18.29330717,238.56,238.35,0.0981151]
[1732556970102,18.29330717,238.41,238.35,0.0981151]
[1732556970283,18.29330717,238.38,238.35,0.0981151]
[1732556970483,18.29330717,238.38,238.36,0.12549]
[1732556971195,18.29330717,238.38,238.35,0.2236051]
[1732556971805,18.29330717,238.4,238.35,0.0981151]
[1732556972015,18.29330717,238.38,238.35,0.0981151]
[1732556972383,18.29330717,238.4,238.36,0.12549]
[1732556972791,18.29330717,238.42,238.36,0.12549]
[1732556973724,18.29330717,238.42,238.37,0.12549]
[1732556974003,18.29330717,238.42,238.37,0.25098]
[1732556974214,18.29330717,238.49,238.42,0.25098]
[1732556974507,2.5151,238.55,238.44,0.12549]
[1732556974508,18.29330717,238.51,238.44,0.12549]
[1732556975611,18.29330717,238.51,238.44,4.44488]
[1732556975904,18.29330717,238.53,238.48,0.12549]
[1732556976106,18.29330717,238.55,238.48,0.12549]
[1732556976713,18.29330717,238.59,238.52,0.25098]
[1732556977015,18.29330717,238.57,238.52,0.25098]
[1732556977304,18.29330717,238.53,238.46,6.3725]
[1732556977493,18.29330717,238.49,238.46,6.3725]
[1732556977806,18.29330717,238.49,238.43,1.70111169]
[1732556977807,18.29330717,238.49,238.45,4.1937]
[1732556978103,18.29330717,238.51,238.45,4.1937]
[1732556978486,18.29330717,238.51,238.46,0.12549]
[1732556978709,18.29330717,238.53,238.46,0.12549]
[1732556979095,2.5148,238.58,238.46,42.32117117]
[1732556979096,18.29330717,238.55,238.46,42.32117117]
[1732556979295,2.5148,238.58,238.46,42.32117117]
[1732556979296,18.29330717,238.53,238.46,0.25098]
[1732556979616,18.29330717,238.51,238.46,4.44448]
[1732556980109,18.29330717,238.49,238.46,0.25098]
[1732556980702,18.29330717,238.51,238.46,0.25098]
[1732556981110,18.29330717,238.49,238.46,0.25098]
[1732556981609,18.29330717,238.49,238.46,4.44448]
[1732556981808,18.29330717,238.51,238.46,0.25098]
[1732556982110,18.29330717,238.49,238.46,4.44448]
[1732556982808,18.29330717,238.5,238.46,4.44448]
[1732556983007,18.29330717,238.52,238.46,4.44448]
[1732556985214,18.29330717,238.5,238.46,4.44448]
[1732556985711,18.29330717,238.5,238.46,4.44438]
[1732556987594,18.29330717,238.52,238.46,4.44438]
[1732556987900,154.74021883,238.79,238.46,4.44438]
[1732556987901,18.29330717,238.58,238.5,24.027864]
[1732556988226,18.29330717,238.58,238.52,0.25098]
[1732556988422,18.29330717,238.6,238.52,24.027864]
[1732556988911,18.29330717,238.56,238.52,24.027864]
[1732556989208,18.29330717,238.54,238.51,6.1927]
[1732556989999,18.29330717,238.54,238.51,10.3853]
[1732556990312,18.29330717,238.56,238.52,0.25098]
[1732556991091,18.29330717,238.54,238.52,0.25098]
[1732556991525,18.29330717,238.56,238.52,0.25098]
[1732556991812,18.29330717,238.56,238.52,4.44348]
[1732556992499,18.29330717,238.56,238.54,0.25098]
[1732556992906,18.29330717,238.58,238.54,0.25098]
[1732556993218,18.29330717,238.56,238.51,6.1927]
[1732556993443,18.29330717,238.54,238.52,0.12549]
[1732556993716,18.29330717,238.54,238.52,0.25098]
[1732556994125,18.29330717,238.54,238.52,0.12549]
[1732556994309,18.29330717,238.54,238.53,0.12549]
[1732556995626,18.29330717,238.54,238.53,4.44328]
[1732556996325,11.39163659,238.56,238.53,4.44328]
[1732556996627,11.39163659,238.56,238.54,0.12549]
[1732556998230,11.39163659,238.56,238.5,0.12549]
[1732556998408,21.39163659,238.68,238.49,0.12549]
[1732556998409,11.39163659,238.52,238.49,0.12549]
[1732556999232,11.39163659,238.54,238.49,0.12549]
[1732556999429,11.39163659,238.54,238.5,4.1928]
[1732556999636,11.39163659,238.56,238.5,4.1928]
[1732556999934,11.39163659,238.56,238.51,0.12549]
[1732557000139,11.39163659,238.59,238.51,24.027864]
[1732557000342,11.39163659,238.57,238.51,0.25098]
[1732557000845,11.39163659,238.58,238.51,0.12549]
[1732557001151,2.5139,238.67,238.53,24.027864]
[1732557001324,11.39163659,238.62,238.55,0.25098]
[1732557001527,16.2839,238.71,238.53,23.776884]
[1732557001528,11.39163659,238.64,238.57,0.25098]
[1732557001925,11.39163659,238.66,238.59,24.027864]
[1732557002129,11.39163659,238.66,238.61,0.25098]
[1732557002348,11.39163659,238.62,238.6,6.2661]
[1732557002560,11.39163659,238.64,238.6,6.2661]
[1732557002761,11.39163659,238.64,238.61,0.12549]
[1732557002963,8.7964,238.73,238.61,0.25098]
[1732557002964,11.39163659,238.68,238.61,0.25098]
[1732557003148,11.39163659,238.64,238.61,0.12549]
[1732557003649,11.39163659,238.68,238.61,4.31629]
[1732557003843,11.39163659,238.72,238.65,0.12549]
[1732557004043,11.39163659,238.72,238.65,0.25098]
[1732557004245,11.39163659,238.74,238.67,24.027864]
[1732557004442,11.39163659,238.78,238.71,0.12549]
[1732557004653,11.39163659,238.74,238.65,23.902374]
[1732557004864,11.39163659,238.8,238.66,11.51712659]
[1732557005043,11.39163659,238.79,238.71,0.12549]
[1732557005249,2.5123,238.82,238.71,0.12549]
[1732557005250,11.39163659,238.77,238.71,0.12549]
[1732557005454,11.39163659,238.77,238.72,4.189]
[1732557005650,11.39163659,238.81,238.73,0.12549]
[1732557005857,11.39163659,238.81,238.74,17.76733659]
[1732557006044,11.39163659,238.83,238.75,0.12549]
[1732557006247,18.18172038,238.86,238.78,18.18172038]
[1732557006464,18.18172038,238.88,238.8,18.18172038]
[1732557006672,18.18172038,238.93,238.85,18.18172038]
[1732557006873,18.18172038,238.95,238.88,6.3757]
[1732557007167,18.18172038,238.99,238.91,18.18172038]
[1732557007380,18.18172038,239.01,238.93,18.18172038]
[1732557007556,6.2737,239.1,238.93,18.18172038]
[1732557007557,18.18172038,239.03,238.96,18.18172038]
[1732557008081,18.18172038,239.03,238.97,23.902374]
[1732557008297,2.5095,239.09,238.94,18.18172038]
[1732557008298,18.18172038,238.99,238.94,0.12549]
[1732557008446,18.18172038,238.95,238.9,0.12549]
[1732557008770,18.18172038,238.94,238.9,0.12549]
[1732557008971,18.18172038,238.92,238.9,0.12549]
[1732557009175,18.18172038,238.92,238.88,6.3757]
[1732557009348,18.18172038,238.92,238.81,16.3137]
[1732557009349,18.18172038,238.89,238.81,26.978]
[1732557009551,18.18172038,238.84,238.81,22.7906]
[1732557009753,18.18172038,238.91,238.83,18.18172038]
[1732557009945,18.18172038,238.87,238.81,22.7906]
[1732557011255,18.18172038,238.89,238.81,40.97232038]
[1732557011453,18.18172038,238.91,238.82,0.12549]
[1732557011661,18.18172038,238.89,238.82,0.12549]
[1732557012144,18.18172038,238.89,238.82,24.027864]
[1732557012348,18.18172038,238.89,238.82,28.214864]
[1732557012955,18.18172038,238.91,238.84,24.027864]
[1732557013261,18.18172038,238.87,238.84,0.12549]
[1732557013444,1.69668485,239.09,238.82,0.12549]
[1732557013649,18.18172038,239.07,238.98,0.12549]
[1732557013875,20.2738,239.24,238.97,18.18172038]
[1732557013876,18.18172038,239.05,238.97,18.18172038]
[1732557014450,18.18172038,239.09,239.0,0.12549]
[1732557014649,18.18172038,239.07,238.98,0.25098]
[1732557014849,18.18172038,239.09,239.01,18.18172038]
[1732557015071,18.65100278,239.11,239.01,18.18172038]
[1732557015382,18.65100278,239.11,239.03,18.18172038]
[1732557015582,0.4692824,239.11,239.03,18.18172038]
[1732557016258,0.4692824,239.11,239.03,22.36522038]
[1732557016577,18.18172038,239.09,239.01,18.18172038]
[1732557016886,18.18172038,239.05,238.95,18.18172038]
[1732557017062,18.18172038,238.98,238.9,6.3628]
[1732557017254,18.18172038,238.96,238.9,6.3628]
[1732557017455,18.18172038,239.0,238.91,18.18172038]
[1732557017648,18.18172038,239.02,238.93,18.18172038]
[1732557017858,18.18172038,239.04,238.95,18.18172038]
[1732557018455,0.4692824,239.11,238.97,18.18172038]
[1732557018657,0.4692824,239.11,239.05,18.18172038]
[1732557020189,0.4692824,239.11,239.06,0.12549]
[1732557020483,0.4692824,239.11,239.05,22.36482038]
[1732557020653,18.18172038,239.09,239.01,18.18172038]
[1732557021178,0.4692824,239.11,239.05,18.18172038]
[1732557021862,18.66010278,239.13,239.05,18.18172038]
[1732557022176,18.18172038,239.09,239.01,18.18172038]
[1732557022376,18.18172038,239.13,239.05,18.18172038]
[1732557022761,18.18172038,239.11,239.04,0.12549]
[1732557023068,2.5084,239.19,239.04,0.12549]
[1732557023069,18.18172038,239.13,239.05,18.18172038]
[1732557023270,18.18172038,239.15,239.07,18.18172038]
[1732557023564,18.18172038,239.11,239.03,18.18172038]
[1732557023765,18.18172038,239.13,239.05,18.18172038]
[1732557023983,18.18172038,239.13,239.06,0.12549]
[1732557025083,18.18172038,239.11,239.02,0.12549]
[1732557025265,18.18172038,239.11,239.04,0.12549]
[1732557025465,18.18172038,239.13,239.05,18.18172038]
[1732557025667,18.18172038,239.11,239.03,18.18172038]
[1732557026272,18.18172038,239.13,239.05,18.18172038]
[1732557026462,18.18172038,239.17,239.07,18.18172038]
[1732557026666,18.18172038,239.17,239.09,18.18172038]
[1732557026870,18.18172038,239.15,239.07,18.18172038]
[1732557027265,18.18172038,239.18,239.08,18.18172038]
[1732557027480,18.18172038,239.16,239.08,18.18172038]
[1732557027695,18.18172038,239.16,239.06,22.36462038]
[1732557027865,18.18172038,239.16,239.07,0.12549]
[1732557028175,18.18172038,239.12,239.04,28.62522038]
[1732557028384,18.18172038,239.14,239.07,0.12549]
[1732557028568,18.18172038,239.16,239.08,18.18172038]
[1732557028768,18.18172038,239.18,239.1,18.18172038]
[1732557028964,20.69032038,239.18,239.1,18.18172038]
[1732557029389,18.18172038,239.13,239.06,18.18172038]
[1732557029588,18.18172038,239.13,239.04,24.44202038]
[1732557029893,18.18172038,239.11,239.04,28.62532038]
[1732557030078,18.18172038,239.13,239.06,18.18172038]
[1732557030277,18.18172038,239.13,239.04,24.44202038]
[1732557030679,18.18172038,239.09,239.04,6.2603]
[1732557031278,18.18172038,239.07,239.0,18.18172038]
[1732557031797,18.18172038,239.07,238.99,6.1349]
[1732557032186,18.18172038,239.07,238.94,10.4626]
[1732557032187,18.18172038,239.01,238.94,18.18172038]
[1732557032899,18.18172038,239.03,238.94,18.18172038]
[1732557033193,20.69182038,239.03,238.94,22.36672038]
[1732557033508,20.69182038,239.03,238.94,18.18172038]
[1732557033706,20.69182038,239.03,238.94,22.36682038]
[1732557034002,18.18172038,239.05,238.98,18.18172038]
[1732557034298,33.08732038,239.16,238.94,4.1851]
[1732557034299,18.18172038,239.03,238.94,18.18172038]
[1732557034879,18.18172038,239.03,238.96,18.18172038]
[1732557035077,8.783,239.1,238.96,18.18172038]
[1732557035078,18.18172038,239.05,238.96,18.18172038]
[1732557035301,18.18172038,239.03,238.96,18.18172038]
[1732557035494,26.286484,239.08,238.93,6.2748]
[1732557035495,18.18172038,239.01,238.94,18.18172038]
[1732557035699,18.18172038,239.01,238.93,6.2748]
[1732557036029,18.18172038,239.03,238.96,18.18172038]
[1732557036389,18.18172038,239.05,238.96,18.18172038]
[1732557036574,18.18172038,239.05,238.98,18.18172038]
[1732557037401,20.69142038,239.07,239.0,18.18172038]
[1732557037606,2.5097,239.07,239.0,18.18172038]
[1732557038191,20.69142038,239.07,239.0,18.18172038]
[1732557038595,2.5097,239.07,239.0,18.18172038]
[1732557038986,18.18172038,239.05,238.96,22.36632038]
[1732557039187,18.18172038,239.05,238.96,18.18172038]
[1732557039490,20.69142038,239.07,238.98,18.18172038]
[1732557039685,20.69142038,239.07,239.0,18.18172038]
[1732557039994,18.18172038,239.09,239.0,18.18172038]
[1732557040193,20.69122038,239.09,239.0,18.18172038]
[1732557040390,18.18172038,239.09,239.02,18.18172038]
[1732557040582,20.69122038,239.09,239.0,22.36562038]
[1732557041002,20.69122038,239.09,239.0,18.18172038]
[1732557041202,18.18172038,239.09,239.0,18.18172038]
[1732557041389,18.18172038,239.09,239.0,22.36572038]
[1732557041589,18.18172038,239.09,239.02,18.18172038]
[1732557041788,18.18172038,239.11,239.02,18.18172038]
[1732557042203,18.18172038,239.09,239.02,18.18172038]
[1732557042695,18.18172038,239.09,239.01,4.1838]
[1732557042875,18.18172038,239.13,239.04,18.18172038]
[1732557043075,18.18172038,239.13,239.01,4.1838]
[1732557043076,18.18172038,239.15,239.06,18.18172038]
[1732557043536,18.18172038,239.15,239.01,14.6436]
[1732557043706,20.69012038,239.19,239.12,18.18172038]
[1732557044090,18.18172038,239.21,239.12,18.18172038]
[1732557044481,18.18172038,239.19,239.12,18.18172038]
[1732557044681,18.18172038,239.19,239.1,18.18172038]
[1732557045082,18.18172038,239.17,239.09,4.1823]
[1732557045717,18.18172038,239.13,239.06,40.42262038]
[1732557046011,18.18172038,239.11,239.06,6.5186]
[1732557046985,20.69102038,239.11,239.06,6.5186]
[1732557048005,20.69082038,239.13,239.06,6.5186]
[1732557048208,18.18172038,239.17,239.1,18.18172038]
[1732557048421,18.18172038,239.17,239.08,18.18172038]
[1732557048588,18.18172038,239.19,239.1,18.18172038]
[1732557048792,18.18172038,239.19,239.11,4.1821]
[1732557049219,20.69012038,239.19,239.11,4.1821]
[1732557049419,18.18172038,239.19,239.11,4.1821]
[1732557049716,18.18172038,239.17,239.11,4.1821]
[1732557049909,2.5085,239.19,239.09,4.1823]
[1732557049910,18.18172038,239.15,239.09,4.1823]
[1732557050101,3.96805367,239.15,239.09,4.1823]
[1732557050818,3.96805367,239.15,239.06,24.70032038]
[1732557051009,16.2697,239.25,239.06,24.70032038]
[1732557051010,18.18172038,239.17,239.08,18.18172038]
[1732557051317,18.18172038,239.15,239.07,4.1828]
[1732557053290,20.69022038,239.19,239.1,18.18172038]
[1732557053895,20.69012038,239.19,239.1,18.18172038]
[1732557054723,18.18172038,239.17,239.1,18.18172038]
[1732557055022,20.69012038,239.19,239.11,4.1821]
[1732557055521,18.18172038,239.17,239.1,4.1823]
[1732557055722,18.18172038,239.17,239.09,4.1825]
[1732557056016,18.18172038,239.17,239.08,18.18172038]
[1732557056195,18.18172038,239.15,239.07,4.1827]
[1732557056595,18.18172038,239.15,239.06,28.88332038]
[1732557056926,18.18172038,239.11,239.06,6.5186]
[1732557057395,18.18172038,239.13,239.06,10.7016]
[1732557057597,18.18172038,239.13,239.06,6.5186]
[1732557058313,18.18172038,239.11,239.06,6.5186]
[1732557058697,18.18172038,239.11,238.99,4.30969]
[1732557058903,18.18172038,239.11,239.02,18.18172038]
[1732557059099,20.69102038,239.11,239.03,4.1835]
[1732557059327,20.69102038,239.11,239.02,18.18172038]
[1732557060200,18.18172038,239.09,239.02,4.1837]
[1732557060517,18.18172038,239.11,239.02,22.36542038]
[1732557060706,20.69102038,239.11,239.02,22.36542038]
[1732557061605,18.18172038,239.05,238.97,6.0391]
[1732557061808,18.18172038,239.03,238.97,6.0391]
[1732557062008,2.5093,239.11,238.97,6.0391]
[1732557062009,18.18172038,239.01,238.97,6.0391]
[1732557062315,20.69202038,239.01,238.97,6.0391]
[1732557062926,18.18172038,239.01,238.97,6.0391]
[1732557063098,18.18172038,239.03,238.97,6.0391]
[1732557063728,18.18172038,239.07,238.98,47.36602038]
[1732557064103,20.69142038,239.07,238.98,47.36602038]
[1732557064301,18.18172038,239.05,238.98,25.0]
[1732557064601,18.18172038,239.01,238.98,25.0]
[1732557064999,18.18172038,239.03,238.98,25.0]
[1732557065221,18.18172038,239.05,238.98,25.0]
[1732557065418,18.18172038,239.07,238.98,47.36612038]
[1732557065730,18.18172038,239.09,239.0,18.18172038]
[1732557066212,18.18172038,239.07,238.98,47.36612038]
[1732557066412,18.18172038,239.05,238.98,47.36612038]
[1732557066619,18.18172038,239.07,238.98,47.36612038]
[1732557067125,2.5097,239.08,239.0,18.18172038]
[1732557067352,18.18172038,239.09,239.02,18.18172038]
[1732557067628,18.18172038,239.13,239.06,18.18172038]
[1732557067831,18.18172038,239.11,239.04,18.18172038]
[1732557068031,18.18172038,239.11,239.02,18.18172038]
[1732557068515,20.69102038,239.11,239.02,22.36542038]
[1732557068923,18.18172038,239.09,239.02,18.18172038]
[1732557069122,18.18172038,239.09,239.01,0.12549]
[1732557070026,18.18172038,239.07,238.99,4.1842]
[1732557070233,18.18172038,239.09,239.0,18.18172038]
[1732557070525,18.18172038,239.11,239.02,18.18172038]
[1732557070720,18.18172038,239.13,239.04,18.18172038]
[1732557070920,20.69052038,239.15,239.06,18.18172038]
[1732557071119,18.18172038,239.17,239.09,6.1099]
[1732557071510,18.18172038,239.17,239.1,18.18172038]
[1732557071710,2.5083,239.2,239.12,18.18172038]
[1732557071921,18.18172038,239.19,239.1,0.12549]
[1732557072120,18.18172038,239.15,239.09,6.1099]
[1732557072432,18.18172038,239.13,239.09,6.1099]
[1732557072619,18.18172038,239.11,239.04,6.1709]
[1732557073615,18.18172038,239.09,239.04,6.1709]
[1732557074030,18.18172038,239.05,238.98,31.0297]
[1732557074235,18.18172038,239.03,238.98,31.0297]
[1732557075109,18.18172038,239.01,238.98,31.0297]
[1732557078042,18.18172038,238.99,238.98,25.0]
[1732557078328,41.95860438,238.99,238.98,25.0]
[1732557078719,44.46910438,238.99,238.98,25.0]
[1732557080844,44.59459438,238.99,238.98,25.0]
[1732557081140,44.46910438,238.99,238.98,25.0]
[1732557081541,44.72008438,238.99,238.98,25.0]
[1732557081721,34.027864,238.98,238.85,6.0469]
[1732557081929,18.18172038,238.89,238.85,6.0469]
[1732557082436,11.36026338,238.9,238.85,6.0469]
[1732557083018,11.36026338,238.94,238.85,21.59386338]
[1732557083842,11.36026338,238.94,238.87,11.36026338]
[1732557084240,11.36026338,238.94,238.85,21.59386338]
[1732557084416,18.17127645,238.93,238.85,28.40487645]
[1732557085035,18.17127645,238.89,238.85,6.0469]
[1732557085620,18.17127645,238.91,238.85,6.0469]
[1732557086438,18.17127645,238.89,238.85,6.0469]
[1732557086615,2.5112,238.93,238.85,6.0469]
[1732557086616,18.17127645,238.87,238.85,6.0469]
[1732557086810,20.68307645,238.87,238.81,15.6092]
[1732557087337,18.17127645,238.89,238.81,15.6092]
[1732557087744,18.17127645,238.91,238.82,18.17127645]
[1732557087943,18.17127645,238.93,238.84,18.17127645]
[1732557088119,20.68247645,238.93,238.84,18.17127645]
[1732557088850,20.68247645,238.93,238.84,22.35797645]
[1732557090930,18.17127645,238.91,238.82,22.48386645]
[1732557092014,30.053784,238.98,238.86,18.17127645]
[1732557092215,18.17127645,238.99,238.89,18.17127645]
[1732557092426,20.68157645,239.01,238.93,18.17127645]
[1732557092630,18.17127645,239.01,238.93,34.25247645]
[1732557093253,18.17127645,238.99,238.93,16.0812]
[1732557093651,18.17127645,239.01,238.93,34.25247645]
[1732557093829,18.17127645,239.03,238.95,18.17127645]
[1732557094231,18.17127645,239.03,238.96,4.1848]
[1732557094432,18.17127645,239.03,238.95,18.17127645]
[1732557094738,18.17127645,239.03,238.95,22.35607645]
[1732557095155,18.17127645,239.05,238.97,18.17127645]
[1732557095824,18.17127645,239.07,238.99,18.17127645]
[1732557096431,18.17127645,239.07,239.0,4.1841]
[1732557096631,18.17127645,239.05,238.98,4.1843]
[1732557098372,18.17127645,239.03,238.96,4.1846]
[1732557098655,18.17127645,239.01,238.94,4.1851]
[1732557099553,18.17127645,239.07,238.99,18.17127645]
[1732557099864,18.17127645,239.09,239.02,6.18329]
[1732557100641,18.17127645,239.09,239.02,10.36689]
[1732557101358,18.17127645,239.11,239.04,15.6891]
[1732557101930,18.17127645,239.15,239.07,18.17127645]
[1732557102538,18.17127645,239.15,239.07,22.35397645]
[1732557102735,20.68007645,239.15,239.07,22.35397645]
[1732557103160,18.17127645,239.13,239.05,18.17127645]
[1732557103343,18.17127645,239.13,239.05,22.35447645]
[1732557103549,20.68007645,239.15,239.07,18.17127645]
[1732557103866,18.17127645,239.13,239.05,22.35447645]
[1732557105458,2.5089,239.14,239.05,22.35447645]
[1732557105459,2.5088,239.16,239.09,18.17127645]
[1732557106266,18.17127645,239.13,239.05,22.35447645]
[1732557106450,11.33789009,239.13,239.05,15.52109009]
[1732557107256,13.84699009,239.13,239.05,15.52109009]
[1732557110252,13.84679009,239.15,239.07,11.33789009]
[1732557110570,13.84679009,239.15,239.05,4.1832]
[1732557110571,11.33789009,239.2,239.13,11.33789009]
[1732557110776,13.84589009,239.23,239.16,11.33789009]
[1732557110945,13.84579009,239.25,239.16,26.62629009]
[1732557111143,2.5079,239.25,239.18,11.33789009]
[1732557111357,11.33789009,239.27,239.2,11.33789009]
[1732557111558,11.33789009,239.29,239.2,15.51839009]
[1732557111763,19.97619725,239.31,239.24,11.33789009]
[1732557111961,13.84509009,239.31,239.24,11.33789009]
[1732557112774,2.5072,239.31,239.24,11.33789009]
[1732557113071,11.33789009,239.31,239.22,15.51799009]
[1732557113267,11.33789009,239.31,239.19,6.0459]
[1732557113268,11.33789009,239.29,239.2,15.51829009]
[1732557113452,11.33789009,239.29,239.22,11.33789009]
[1732557114259,18.11723492,239.29,239.21,18.11723492]
[1732557115473,17.61723492,239.29,239.21,18.11723492]
[1732557115680,17.61723492,239.29,239.21,22.29743492]
[1732557116373,17.61723492,239.29,239.19,6.0459]
[1732557116374,18.11723492,239.27,239.19,24.16313492]
[1732557116576,2.5074,239.29,239.19,6.0459]
[1732557116577,18.11723492,239.25,239.19,6.0459]
[1732557117360,23.776884,239.27,239.2,18.11723492]
[1732557117761,23.776884,239.27,239.2,22.29773492]
[1732557118081,26.284484,239.27,239.2,18.11723492]
[1732557118673,18.11723492,239.24,239.19,6.0459]
[1732557118875,18.11723492,239.26,239.19,10.2266]
[1732557119077,18.11723492,239.28,239.2,18.11723492]
[1732557119767,18.11723492,239.3,239.22,18.11723492]
[1732557120356,18.11723492,239.28,239.21,4.1804]
[1732557121080,18.11723492,239.26,239.19,6.0459]
[1732557121247,18.11723492,239.22,239.19,6.0459]
[1732557122381,18.11723492,239.22,239.16,4.1813]
[1732557122583,18.11723492,239.24,239.16,4.1813]
[1732557123161,18.11723492,239.22,239.13,18.11723492]
[1732557123367,18.11723492,239.22,239.15,18.11723492]
[1732557123565,18.11723492,239.24,239.12,4.182]
[1732557123761,6.2684,239.3,239.12,4.182]
[1732557123762,18.11723492,239.3,239.21,18.11723492]
[1732557123969,18.11723492,239.3,239.23,6.4469]
[1732557124380,18.11723492,239.26,239.23,6.4469]
[1732557124689,18.11723492,239.28,239.23,6.4469]
[1732557124991,18.11723492,239.3,239.23,6.4469]
[1732557125165,18.11723492,239.28,239.23,6.4469]
[1732557126691,18.11723492,239.3,239.23,24.56413492]
[1732557126992,0.4692824,239.34,239.29,18.11723492]
[1732557127205,0.4692824,239.34,239.32,18.11723492]
[1732557127791,0.4692824,239.34,239.33,22.36869]
[1732557127976,0.4692824,239.34,239.33,22.49418]
[1732557128983,0.4692824,239.34,239.33,26.67248]
[1732557130571,0.4692824,239.34,239.33,26.54699]
[1732557130798,0.4692824,239.34,239.33,26.67248]
[1732557131176,18.11723492,239.52,239.33,26.67248]
[1732557131177,18.11723492,239.5,239.36,0.25098]
[1732557131496,5.3748824,239.58,239.45,18.11723492]
[1732557131497,18.11723492,239.52,239.45,18.11723492]
[1732557131676,18.11723492,239.54,239.47,18.11723492]
[1732557131875,18.11723492,239.56,239.49,18.11723492]
[1732557132205,18.58651732,239.58,239.51,18.11723492]
[1732557132392,0.4692824,239.58,239.51,18.11723492]
[1732557132787,0.4692824,239.58,239.54,18.11723492]
[1732557133103,0.4692824,239.58,239.52,18.11723492]
[1732557133674,18.11723492,239.56,239.48,18.11723492]
[1732557134095,18.58651732,239.58,239.5,18.11723492]
[1732557134294,2.5044,239.57,239.5,18.11723492]
[1732557134470,18.11723492,239.56,239.48,18.11723492]
[1732557135105,18.11723492,239.56,239.49,4.1755]
[1732557135281,18.11723492,239.56,239.48,18.11723492]
[1732557135885,26.281484,239.55,239.48,18.11723492]
[1732557136104,18.11723492,239.54,239.48,18.11723492]
[1732557136907,18.11723492,239.54,239.46,28.40683492]
[1732557137491,20.62183492,239.56,239.48,18.11723492]
[1732557137679,18.11723492,239.56,239.49,0.12549]
[1732557137903,18.58651732,239.58,239.52,18.11723492]
[1732557138195,0.4692824,239.58,239.52,18.11723492]
[1732557138406,0.4692824,239.58,239.52,11.29316379]
[1732557138878,0.4692824,239.58,239.51,0.12549]
[1732557139078,0.4692824,239.58,239.52,11.29316379]
[1732557139384,0.4692824,239.58,239.5,11.29316379]
[1732557139605,11.29316379,239.53,239.46,6.1136]
[1732557139801,11.29316379,239.53,239.46,17.40676379]
[1732557140100,11.29316379,239.55,239.46,17.40676379]
[1732557140474,11.29316379,239.53,239.46,6.1136]
[1732557140675,11.29316379,239.49,239.42,11.29316379]
[1732557140888,0.25098,239.56,239.42,11.29316379]
[1732557141204,11.29316379,239.51,239.42,15.46976379]
[1732557141376,13.79836379,239.51,239.41,6.0591]
[1732557141582,11.29316379,239.49,239.41,6.0591]
[1732557141887,11.29316379,239.53,239.44,11.29316379]
[1732557142090,13.79806379,239.53,239.44,11.29316379]
[1732557143197,13.79786379,239.55,239.48,11.29316379]
[1732557143587,13.79766379,239.57,239.48,11.29316379]
[1732557144200,11.29316379,239.55,239.48,11.29316379]
[1732557144702,11.29316379,239.55,239.46,11.29316379]
[1732557145081,11.29316379,239.55,239.43,4.1765]
[1732557145082,11.29316379,239.53,239.44,11.29316379]
[1732557145407,13.79826379,239.51,239.44,11.29316379]
[1732557145584,11.29316379,239.51,239.44,11.29316379]
[1732557145990,13.79826379,239.51,239.42,11.29316379]
[1732557146179,11.29316379,239.49,239.41,6.0591]
[1732557146502,11.29316379,239.5,239.42,11.29316379]
[1732557147004,11.29316379,239.48,239.41,6.0591]
[1732557147201,11.29316379,239.5,239.42,11.29316379]
[1732557147407,11.29316379,239.48,239.41,6.0591]
[1732557149404,2.505,239.52,239.46,11.29316379]
[1732557150080,13.79816379,239.52,239.42,11.29316379]
[1732557150281,11.29316379,239.48,239.41,6.0591]
[1732557151183,11.29316379,239.46,239.38,11.29316379]
[1732557151382,2.5057,239.45,239.38,11.29316379]
[1732557151780,2.5057,239.45,239.36,15.47086379]
[1732557151981,11.29316379,239.46,239.36,15.47086379]
[1732557152180,13.79876379,239.46,239.38,11.29316379]
[1732557152483,15.8215,239.53,239.4,11.29316379]
[1732557152484,13.79846379,239.5,239.4,11.29316379]
[1732557153300,15.8215,239.53,239.41,11.29316379]
[1732557153301,13.79856379,239.48,239.41,11.29316379]
[1732557153881,11.29316379,239.46,239.39,11.29316379]
[1732557154082,11.29316379,239.46,239.37,11.29316379]
[1732557154385,23.776884,239.47,239.39,18.08812305]
[1732557155280,20.59352305,239.48,239.41,18.08812305]
[1732557155479,18.08812305,239.5,239.43,18.08812305]
[1732557155712,18.08812305,239.54,239.45,18.08812305]